{"text_format":"1","workbook":"xlsx","n_sheets":12,"sheets":["IMP","stu","pqr","mno","jkl","ghi","def","PHA","abc","KWT","cpw","Sheet1"],"not_rendered":{"charts":0,"images":0,"macros":1,"external_links":0,"defined_names":4,"comments":0,"pivot_tables":0},"unopened":[],"bounds":{"document_bytes":16777216,"sheet_cells":100000,"rows_first":2000,"rows_last":500,"rows_between":2000,"halvings":0,"cell_chars":16384,"cell_head_chars":4096},"cells_cut":0,"cells_raw":0,"read":"whole","date_system":"1900"}

{"sheet":"IMP","index":0,"n_rows":1,"n_cols":1,"rows_kept":1,"cut":false,"hidden":true,"merged":[]}
["asd"]

{"sheet":"stu","index":1,"n_rows":0,"n_cols":0,"rows_kept":0,"cut":false,"hidden":true,"merged":[]}

{"sheet":"pqr","index":2,"n_rows":0,"n_cols":0,"rows_kept":0,"cut":false,"hidden":true,"merged":[]}

{"sheet":"mno","index":3,"n_rows":0,"n_cols":0,"rows_kept":0,"cut":false,"hidden":true,"merged":[]}

{"sheet":"jkl","index":4,"n_rows":0,"n_cols":0,"rows_kept":0,"cut":false,"hidden":true,"merged":[]}

{"sheet":"ghi","index":5,"n_rows":0,"n_cols":0,"rows_kept":0,"cut":false,"hidden":true,"merged":[]}

{"sheet":"def","index":6,"n_rows":0,"n_cols":0,"rows_kept":0,"cut":false,"hidden":true,"merged":[]}

{"sheet":"PHA","index":7,"n_rows":63,"n_cols":20,"rows_kept":63,"cut":false,"hidden":false,"merged":[[0,0,30,0],[15,12,17,14],[15,15,15,19],[18,12,22,12]]}
["Preliminary Hazard Analysis","Hazard","Risk","Causes","Effects","Probability","Severity","Class","Strategie","Mitigation/Preventive Measures","Comments"]
[null,null,null,null,null,null,null,{"$f":"IF(AND(F2*G2>0,F2*G2<3),\"C\",IF(AND(F2*G2>2,F2*G2<12),\"B\",IF(AND(F2*G2>8,F2*G2<14),\"A\",IF(AND(F2*G2>14,F2*G2<26),\"AA\",\"\"))))","v":""}]
[null,null,null,null,null,null,null,{"$f":"IF(AND(F3*G3>0,F3*G3<3),\"C\",IF(AND(F3*G3>2,F3*G3<12),\"B\",IF(AND(F3*G3>8,F3*G3<14),\"A\",IF(AND(F3*G3>14,F3*G3<26),\"AA\",\"\"))))","v":""}]
[null,null,null,null,null,null,null,""]
[null,null,null,null,null,null,null,""]
[null,null,null,null,null,null,null,""]
[null,null,null,null,null,null,null,""]
[null,null,null,null,null,null,null,""]
[null,null,null,null,null,null,null,""]
[null,null,null,null,null,null,null,""]
[null,null,null,null,null,null,null,""]
[null,null,null,null,null,null,null,""]
[null,null,null,null,null,null,null,""]
[null,null,null,null,null,null,null,""]
[null,null,null,null,null,null,null,""]
[null,null,null,null,null,null,null,"",null,null,null,null,"Risk  Matrix",null,null,"Severity"]
[null,null,null,null,null,null,null,"",null,null,null,null,null,null,null,"VERY LOW","LOW","MEDIUM","HIGH","VERY HIGH"]
[null,null,null,null,null,null,null,"",null,null,null,null,null,null,null,1,2,3,4,5]
[null,null,null,null,null,null,null,"",null,null,null,null,"Probability of Occurence","VERY HIGH",5,5,10,15,20,25]
[null,null,null,null,null,null,null,"",null,null,null,null,null,"HIGH",4,4,8,12,16,20]
[null,null,null,null,null,null,null,"",null,null,null,null,null,"MEDIUM",3,3,6,9,12,15]
[null,null,null,null,null,null,null,"",null,null,null,null,null,"LOW",2,2,4,6,8,12]
[null,null,null,null,null,null,null,"",null,null,null,null,null,"VERY LOW",1,1,2,3,4,5]
[null,null,null,null,null,null,null,""]
[null,null,null,null,null,null,null,""]
[null,null,null,null,null,null,null,""]
[null,null,null,null,null,null,null,""]
[null,null,null,null,null,null,null,""]
[null,null,null,null,null,null,null,""]
[null,null,null,null,null,null,null,""]
[null,null,null,null,null,null,null,""]
[]
[]
[]
[]
[]
[]
[]
[]
[]
[]
[]
["Designed by Ayman Nagi ©"]
[]
[]
[]
[]
[]
[]
[]
[]
[]
[]
[]
[]
[]
[]
[]
[null,null,1,"Prevent"]
[null,null,2,"Mitigate"]
[null,null,3,"Accept"]
[null,null,4]
[null,null,5]

{"sheet":"abc","index":8,"n_rows":0,"n_cols":0,"rows_kept":0,"cut":false,"hidden":true,"merged":[]}

{"sheet":"KWT","index":9,"n_rows":1,"n_cols":53,"rows_kept":1,"cut":false,"hidden":true,"merged":[]}
[null,null,null,null,null,null,null,null,null,null,null,null,null,null,null,null,null,null,null,null,null,null,null,null,null,null,null,null,null,null,null,null,null,null,null,null,null,null,null,null,null,null,null,null,null,null,null,null,null,null,null,null,"1234"]

{"sheet":"cpw","index":10,"n_rows":1,"n_cols":1,"rows_kept":1,"cut":false,"hidden":true,"merged":[]}
[1234]

{"sheet":"Sheet1","index":11,"n_rows":0,"n_cols":0,"rows_kept":0,"cut":false,"hidden":true,"merged":[]}